bitfinex/quotes_ETHUSD_20251119
["timestamp","ask_amount","ask_price","bid_price","bid_amount"]
[1763566531855,6.63900414,3012.5,3011.5,0.1991]
[1763566532294,9.95850621,3012.5,3011.5,0.1991]
[1763566532459,7.64704694,3012.5,3011.5,0.1991]
[1763566532668,7.64704694,3012.5,3011.0,0.001]
[1763566532669,0.1155,3011.6,3011.0,0.001]
[1763566532988,0.122,3011.5,3011.0,0.001]
[1763566533155,0.122,3011.4,3011.0,0.496]
[1763566533350,0.1212,3011.3,3011.0,0.001]
[1763566533549,0.231,3012.3,3011.0,0.496]
[1763566533750,13.28021248,3012.0,3011.0,0.001]
[1763566533976,1.32802125,3011.9,3011.0,0.001]
[1763566534314,9.96015936,3012.0,3011.0,0.001]
[1763566534486,3.32005312,3012.0,3011.0,0.001]
[1763566534660,0.405504,3012.3,3011.2,0.1]
[1763566534661,0.122,3012.3,3011.2,0.1]
[1763566534847,0.122,3012.6,3011.4,0.1]
[1763566535052,0.122,3012.6,3011.3,0.495]
[1763566535274,0.122,3012.6,3011.5,0.1]
[1763566535487,0.002,3013.1,3011.5,0.1]
[1763566535726,0.002,3013.1,3013.0,0.1991]
[1763566536033,0.002,3013.1,3011.8,0.2991]
[1763566536234,0.002,3013.1,3011.9,0.495]
[1763566537340,0.002,3013.1,3011.8,0.1991]
[1763566537483,0.405504,3012.9,3011.4,0.1991]
[1763566537683,0.03948863,3012.8,3011.4,0.1991]
[1763566537915,9.9578451,3012.7,3011.5,0.4814]
[1763566538183,7.67489831,3012.7,3011.5,0.4814]
[1763566538392,0.122,3012.6,3011.4,0.1991]
[1763566538636,0.122,3012.6,3011.0,0.001]
[1763566538637,0.405504,3012.5,3011.0,0.001]
[1763566538815,0.405504,3012.3,3011.0,0.001]
[1763566539135,0.80109101,3012.3,3011.0,0.001]
[1763566539369,0.405504,3012.1,3011.0,0.001]
[1763566539491,0.90699264,3012.6,3011.0,0.001]
[1763566539692,1.92754944,3012.5,3011.0,0.001]
[1763566540038,1.31249664,3012.3,3011.0,0.001]
[1763566540337,1.74757228,3012.3,3011.0,0.001]
[1763566540485,0.405504,3012.1,3011.0,0.001]
[1763566540928,0.405504,3012.0,3011.0,0.001]
[1763566541104,1.03209101,3012.0,3011.0,0.001]
[1763566541300,0.1155,3011.9,3011.0,0.001]
[1763566541500,0.2375,3011.9,3011.0,0.001]
[1763566541702,9.95883678,3012.4,3011.1,0.4814]
[1763566541911,3.44229784,3011.8,3011.1,0.4814]
[1763566542106,0.122,3011.8,3011.1,0.4814]
[1763566542308,3.44229116,3011.8,3011.0,0.001]
[1763566542593,6.76258232,3011.8,3011.0,0.001]
[1763566542934,10.08287348,3011.8,3011.0,0.001]
[1763566543218,1.00828735,3011.7,3011.0,0.001]
[1763566543992,9.96148224,3011.6,3011.0,0.001]
[1763566544340,10.35706925,3011.6,3011.0,0.001]
[1763566544529,0.405504,3011.5,3011.0,0.001]
[1763566544835,0.39558701,3011.4,3011.0,0.001]
[1763566544997,0.122,3011.4,3011.0,0.001]
[1763566546037,0.122,3011.3,3011.0,0.001]
[1763566546398,0.81980512,3011.2,3011.0,0.001]
[1763566546797,0.231,3011.1,3011.0,0.001]
[1763566547018,0.64530112,3011.1,3011.0,0.001]
[1763566547218,0.41430112,3011.1,3011.0,0.001]
[1763566547855,0.64530112,3011.1,3011.0,0.001]
[1763566548164,5.70876225,3011.1,3011.0,0.001]
[1763566548456,6.62393208,3011.1,3011.0,0.001]
[1763566550841,6.74593208,3011.1,3011.0,0.001]
[1763566552746,10.23793208,3011.1,3011.0,0.001]
[1763566552919,6.51493208,3011.1,3011.0,0.001]
[1763566553125,4.69276961,3011.1,3011.0,0.001]
[1763566553321,4.16526561,3011.1,3011.0,0.001]
[1763566553622,3.8852196,3011.1,3011.0,0.001]
[1763566553828,4.15365,3011.1,3011.0,0.001]
[1763566554041,3.87296449,3011.1,3011.0,0.001]
[1763566554238,4.3368803,3011.1,3011.0,0.001]
[1763566554461,0.54642718,3011.1,3011.0,0.001]
[1763566554657,3.86747264,3011.1,3011.0,0.001]
[1763566554829,3.44304546,3011.1,3011.0,0.001]
[1763566555943,3.88167131,3011.1,3011.0,0.001]
[1763566557329,4.18959034,3011.1,3011.0,0.001]
[1763566557557,5.07771673,3011.1,3011.0,0.001]
[1763566557759,5.10213176,3011.1,3011.0,0.001]
[1763566558158,3.32009282,3012.0,3011.0,0.001]
[1763566558359,0.405504,3011.6,3011.0,0.001]
[1763566558558,0.44998631,3011.5,3011.0,0.001]
[1763566558760,3.32071461,3011.4,3011.0,0.001]
[1763566559062,1.00460534,3011.3,3011.0,0.001]
[1763566559666,0.40076435,3011.3,3011.0,0.001]
[1763566559864,0.122,3011.2,3011.0,0.001]
[1763566560160,0.43398135,3011.1,3011.0,0.001]
[1763566560365,0.43398135,3011.1,3011.0,0.4824]
[1763566560527,0.43398135,3011.1,3011.0,0.001]
[1763566560528,0.55598135,3011.1,3011.0,0.001]
[1763566560863,4.9951718,3011.1,3011.0,0.001]
[1763566561063,5.82678297,3011.1,3011.0,0.001]
[1763566561565,10.22577561,3011.1,3011.0,0.001]
[1763566561763,10.18628698,3011.1,3011.0,0.001]
[1763566562171,4.66181945,3011.1,3011.0,0.001]
[1763566562332,3.44304546,3011.1,3011.0,0.001]
[1763566562664,3.88849877,3011.1,3011.0,0.001]
[1763566562866,3.84901014,3011.1,3011.0,0.001]
[1763566563038,4.11949877,3011.1,3011.0,0.001]
[1763566563375,5.711399,3011.1,3011.0,0.001]
[1763566563672,10.11039164,3011.1,3011.0,0.001]
[1763566563879,10.07090301,3011.1,3011.0,0.001]
[1763566564083,6.34790301,3011.1,3011.0,0.001]
[1763566564243,3.44304546,3011.1,3011.0,0.001]
[1763566564441,3.87182137,3011.1,3011.0,0.001]
[1763566565290,7.32433274,3011.1,3011.0,0.001]
[1763566565435,7.72983674,3011.1,3011.0,0.001]
[1763566565640,8.83491434,3011.1,3011.0,0.001]
[1763566565886,9.06591434,3011.1,3011.0,0.001]
[1763566566106,5.34291434,3011.1,3011.0,0.001]
[1763566566296,10.5375138,3011.1,3011.0,0.001]
[1763566566494,10.49802517,3011.1,3011.0,0.001]
[1763566566694,1.31249664,3011.0,3009.1,0.1865]
[1763566566895,0.521004,3009.1,3007.8,0.1865]
[1763566567097,3.44525279,3009.1,3008.4,0.4814]
[1763566567293,6.81449217,3009.8,3007.8,0.1865]
[1763566567294,0.122,3009.2,3009.0,0.5714]
[1763566567492,0.122,3009.2,3009.1,0.1865]
[1763566567678,0.44499263,3010.7,3009.1,0.6777]
[1763566567879,1.41701217,3010.6,3009.1,0.6777]
[1763566568080,0.405504,3010.4,3009.1,0.6777]
[1763566568280,1.41701217,3010.6,3009.1,0.6777]
[1763566568281,0.03948863,3010.3,3009.2,0.4912]
[1763566568494,3.492,3010.1,3009.0,0.09]
[1763566568694,0.16148863,3010.2,3009.0,0.09]
[1763566568893,0.405504,3010.0,3009.0,0.08233]
[1763566569121,3.32170735,3010.5,3009.1,0.6758]
[1763566569305,0.16148863,3010.4,3009.1,0.1846]
[1763566569522,0.16148863,3010.4,3009.0,0.08233]
[1763566569523,1.25999264,3010.4,3009.0,0.08233]
[1763566569722,0.405504,3010.3,3009.1,0.1846]
[1763566570114,0.122,3010.2,3009.1,0.1846]
[1763566570317,0.405504,3010.0,3009.1,0.1846]
[1763566570638,0.44499263,3010.0,3009.1,0.1846]
[1763566570798,0.03948863,3009.9,3009.2,0.4912]
[1763566571000,6.76695978,3009.8,3009.2,0.4912]
[1763566571438,3.32199373,3010.3,3009.2,0.4912]
[1763566571638,0.16148863,3010.2,3009.2,0.4912]
[1763566571841,0.69456749,3010.2,3009.1,0.1846]
[1763566572005,0.405504,3010.1,3009.1,0.1846]
[1763566572322,0.405504,3009.9,3009.0,0.08233]
[1763566572525,0.405504,3009.7,3009.0,0.08233]
[1763566572904,0.636504,3009.7,3009.0,0.08233]
[1763566573104,0.03948863,3009.8,3009.0,0.08233]
[1763566573105,1.31249664,3009.5,3009.0,0.08233]
[1763566573323,1.60542994,3009.4,3009.0,0.08233]
[1763566573536,0.405504,3009.3,3009.0,0.08233]
[1763566574242,0.405504,3009.3,3007.8,0.1865]
[1763566574243,1.31249664,3009.1,3007.4,0.1846]
[1763566574450,1.31249664,3009.1,3007.4,0.6758]
[1763566574737,0.405504,3008.9,3007.4,0.6758]
[1763566574924,0.43677306,3008.8,3007.5,0.4912]
[1763566575127,0.405504,3008.5,3007.5,0.4912]
[1763566575326,0.43677306,3008.4,3007.4,0.1846]
[1763566575531,0.405504,3008.3,3007.4,0.6758]
[1763566575706,0.405504,3008.1,3007.4,0.6758]
[1763566576032,0.122,3008.0,3007.1,0.4912]
[1763566576237,0.90699264,3008.5,3007.1,0.4912]
[1763566576441,0.122,3007.9,3006.0,0.1846]
[1763566576638,0.43213706,3008.0,3006.1,0.4912]
[1763566576639,0.122,3007.8,3006.1,0.4912]
[1763566576815,0.405504,3007.9,3006.1,0.4912]
[1763566577004,0.405504,3007.7,3006.1,0.4912]
[1763566577206,1.31249664,3007.7,3006.0,0.1846]
[1763566577438,0.405504,3007.5,3006.0,0.6758]
[1763566577806,0.122,3007.6,3006.1,0.4912]
[1763566578006,0.405504,3007.5,3006.1,0.4912]
[1763566578228,6.64938666,3007.8,3006.1,0.4912]
[1763566578443,0.122,3007.4,3006.1,0.4912]
[1763566578738,6.72930808,3008.6,3006.1,0.4912]
[1763566578739,0.122,3007.3,3006.1,0.4912]
[1763566579045,7.90578855,3009.0,3006.1,0.4912]
[1763566579046,0.122,3007.7,3006.1,7.22050808]
[1763566579353,0.122,3007.7,3006.0,0.1856]
[1763566579354,3.32479968,3007.7,3006.2,0.4912]
[1763566579638,0.85998397,3007.6,3006.2,0.4912]
[1763566580447,0.231,3008.8,3007.5,0.1846]
[1763566580771,0.16148863,3008.7,3007.5,0.1846]
[1763566581042,9.97141527,3008.6,3007.3,0.4912]
[1763566581342,3.32347369,3008.9,3007.2,0.1846]
[1763566581650,0.122,3008.8,3007.3,0.4912]
[1763566581805,0.1155,3009.5,3007.3,0.4912]
[1763566582010,9.96479106,3010.6,3008.7,0.1846]
[1763566582334,1.14157911,3010.5,3008.8,0.4912]
[1763566582527,0.122,3010.5,3008.8,0.4912]
[1763566582728,0.122,3010.5,3009.0,6.72930808]
[1763566582950,0.002,3011.1,3010.4,0.1846]
[1763566583115,0.122,3011.0,3010.4,0.1846]
[1763566583311,0.1212,3011.0,3010.1,0.4912]
[1763566583545,0.03948863,3010.9,3010.0,0.1846]
[1763566583711,6.84480808,3010.1,3008.5,0.4912]
[1763566583912,0.405504,3009.9,3008.6,0.1846]
[1763566584114,0.122,3010.0,3008.6,0.6758]
[1763566584316,0.44499263,3009.9,3008.7,0.4912]
[1763566585052,1.31249664,3009.7,3008.3,0.1846]
[1763566585360,0.405504,3009.5,3008.0,0.1913]
[1763566585560,0.405504,3009.6,3008.3,0.4926]
[1763566586164,0.03948863,3009.5,3008.3,0.4926]
[1763566586349,0.27048863,3009.5,3008.0,0.1913]
[1763566586972,0.405504,3009.6,3008.1,0.4926]
[1763566587302,0.405504,3009.4,3008.1,0.4926]
[1763566587781,0.90699264,3009.8,3008.1,0.4926]
[1763566587782,0.405504,3009.6,3008.1,0.4926]
[1763566588154,3.32247989,3009.8,3008.1,0.4926]
[1763566588155,0.405504,3009.7,3008.1,0.4926]
[1763566588570,6.64497824,3009.8,3008.1,0.4926]
[1763566589053,3.44434689,3010.0,3008.1,0.4926]
[1763566589252,0.03948863,3009.9,3008.1,0.4926]
[1763566589860,0.72008934,3009.9,3008.1,0.4926]
[1763566590270,0.405504,3009.8,3008.1,0.4926]
[1763566590878,0.72008934,3009.9,3008.1,0.4926]
[1763566590879,0.03948863,3009.7,3008.1,0.4926]
[1763566591068,6.64495978,3009.8,3008.1,0.4926]
[1763566591389,4.00299792,3009.9,3008.1,0.4926]
[1763566591554,6.64479442,3009.9,3008.1,0.4926]
[1763566591744,0.405504,3009.9,3008.1,0.5926]
[1763566591949,0.405504,3009.9,3008.1,0.4926]
[1763566592177,0.03948863,3009.8,3008.1,7.1393]
[1763566592577,6.76653253,3010.0,3008.3,6.72930808]
[1763566592793,0.44499263,3009.9,3008.3,6.6483]
[1763566593091,0.44499263,3009.9,3008.4,0.4926]
[1763566593242,6.64495978,3009.8,3008.4,0.4926]
[1763566593448,0.44499263,3009.7,3008.3,6.6483]
[1763566593668,0.405504,3009.5,3008.3,6.6483]
[1763566593865,0.90699264,3009.5,3008.3,6.6483]
[1763566594068,0.78673007,3009.4,3008.3,6.6483]
[1763566594272,0.122,3009.3,3008.4,0.4926]
[1763566594873,0.122,3009.3,3009.2,0.1913]
[1763566595056,3.32181769,3010.4,3009.2,0.1913]
[1763566595258,0.03948863,3010.3,3009.3,0.4926]
[1763566595494,0.122,3010.2,3009.3,7.1387]
[1763566595849,0.122,3010.2,3009.4,0.4926]
[1763566596078,0.122,3010.2,3009.4,7.1384]
[1763566596289,0.122,3010.2,3010.1,0.1913]
[1763566596447,0.04148863,3011.1,3010.1,0.1913]
[1763566596448,6.64231152,3011.0,3010.1,0.1913]
[1763566596648,0.79038002,3010.9,3009.5,0.4926]
[1763566596983,0.122,3010.9,3009.5,7.1382]
[1763566597194,0.122,3010.9,3010.8,0.1913]
[1763566597397,0.002,3011.1,3010.8,0.1913]
[1763566597596,0.002,3011.1,3010.9,0.4926]
[1763566597893,0.002,3011.1,3010.9,7.1351]
[1763566598296,0.002,3011.6,3010.9,7.1351]
[1763566598297,0.002,3011.6,3011.0,0.4821]
[1763566598496,0.002,3011.6,3011.0,7.1244]
[1763566598702,0.002,3011.6,3011.1,0.4821]
[1763566598878,0.122,3012.5,3011.1,7.1242]
[1763566599265,3.44150647,3012.5,3011.2,0.4821]
[1763566599616,0.03948863,3012.4,3011.2,7.124]
[1763566599780,0.002,3013.1,3012.0,0.195]
[1763566599979,0.002,3013.1,3012.1,0.4821]
[1763566600186,0.002,3013.1,3012.1,7.122]
[1763566600608,0.002,3013.1,3012.2,0.4821]
[1763566600904,0.122,3013.0,3012.2,7.1218]
[1763566601318,0.122,3013.0,3012.3,0.4821]
[1763566602013,0.122,3013.0,3012.3,7.1215]
[1763566602180,6.75999112,3013.0,3012.3,7.1215]
[1763566602831,10.07898668,3013.0,3012.3,7.1215]
[1763566603055,0.44499263,3012.9,3012.3,6.6394]
[1763566603384,0.405504,3012.5,3010.9,0.4821]
[1763566603524,0.27448863,3012.4,3010.9,0.4821]
[1763566603742,0.405504,3012.1,3010.0,6.72930808]
[1763566603946,0.405504,3012.1,3010.4,0.4821]
[1763566604237,0.405504,3011.9,3010.4,0.4821]
[1763566604432,0.405504,3011.7,3010.4,0.4821]
[1763566604647,0.405504,3011.5,3010.4,0.4821]
[1763566604825,0.405504,3011.3,3009.9,0.4821]
[1763566604996,0.122,3011.6,3009.9,0.4821]
[1763566605196,0.405504,3011.5,3009.9,0.4821]
[1763566605506,0.405504,3011.3,3009.9,0.4821]
[1763566605840,6.64231152,3011.0,3009.9,0.4821]
[1763566606043,0.03948863,3010.9,3009.9,0.4821]
[1763566606207,0.03948863,3010.9,3009.4,0.195]
[1763566606208,0.405504,3010.8,3009.4,0.195]
[1763566606412,0.405504,3010.6,3009.5,0.4821]
[1763566607269,0.16148863,3010.7,3009.5,0.4821]
[1763566607412,0.405504,3010.4,3008.0,0.4821]
[1763566607619,0.405504,3010.0,3007.9,0.195]
[1763566607813,16.6107438,3010.1,3007.9,0.195]
[1763566607814,0.405504,3009.8,3007.9,0.195]
[1763566608122,0.122,3009.9,3008.0,0.4821]
[1763566608341,0.1212,3009.9,3008.0,0.4821]
[1763566609023,0.405504,3009.8,3008.0,0.4821]
[1763566609331,0.1212,3009.9,3008.0,0.4821]
[1763566609530,0.405504,3009.8,3008.0,0.4821]
[1763566609745,0.405504,3009.6,3008.0,0.4821]
[1763566609944,0.405504,3009.6,3008.0,7.1293]
[1763566610320,0.405504,3009.6,3008.1,0.4821]
[1763566610554,6.64518058,3009.7,3008.1,7.1308]
[1763566610946,9.96412911,3010.8,3008.2,1.48909264]
[1763566611256,9.96412911,3010.8,3008.3,0.1]
[1763566611257,2.02540555,3010.7,3008.3,0.1]
[1763566611555,0.405504,3010.6,3008.4,0.4821]
[1763566611754,2.02540555,3010.7,3008.5,0.195]
[1763566611755,6.6434147,3010.5,3008.5,0.195]
[1763566611942,0.405504,3010.4,3008.5,6.8428]
[1763566612135,0.405504,3010.4,3008.6,0.4821]
[1763566612323,9.96512205,3010.5,3008.6,7.1297]
[1763566612324,6.6434147,3010.5,3008.6,7.1297]
[1763566612719,1.14199264,3010.4,3008.7,0.4821]
[1763566613261,1.14199264,3010.4,3008.6,6.8426]
[1763566613262,0.90699264,3010.4,3008.6,6.8426]
[1763566613462,0.122,3010.3,3008.8,0.4821]
[1763566613652,0.405504,3010.2,3008.8,0.4821]
[1763566613826,0.405504,3010.0,3008.8,0.4821]
[1763566614160,9.96644628,3010.1,3008.8,0.4821]
[1763566614378,6.64429752,3010.1,3008.8,7.1293]
[1763566614726,6.64429752,3010.1,3008.9,0.4821]
[1763566614927,6.64429752,3010.1,3008.9,7.129]
[1763566615434,0.405504,3010.0,3009.0,0.4821]
[1763566615635,6.64429752,3010.1,3009.0,7.1288]
[1763566615867,3.32214876,3010.1,3009.0,7.1288]
[1763566616056,3.32214876,3010.1,3009.1,0.4821]
[1763566616057,6.64429752,3010.1,3009.1,0.4821]
[1763566616261,0.03948863,3010.0,3009.1,7.1286]
[1763566616434,9.96644628,3010.1,3009.1,7.1286]
[1763566616768,0.44499263,3010.0,3009.1,6.6465]
[1763566616953,0.67999263,3010.0,3009.1,6.6465]
[1763566617160,0.405504,3009.8,3009.1,6.6465]
[1763566617355,0.235,3009.9,3009.1,6.6465]
[1763566617555,0.03948863,3009.7,3009.1,6.6465]
[1763566617870,0.405504,3009.8,3009.1,6.6465]
[1763566618176,13.28947804,3009.9,3009.1,6.6465]
[1763566618177,0.03948863,3009.7,3009.1,6.6465]
[1763566618336,0.03948863,3009.6,3008.1,0.001]
[1763566618534,0.405504,3009.4,3008.1,0.001]
[1763566618860,0.525004,3008.2,3008.1,0.001]
[1763566619067,0.647004,3008.2,3008.1,0.001]
[1763566619436,0.647004,3008.2,3007.8,0.001]
[1763566619437,3.897504,3008.1,3007.8,0.001]
[1763566619636,0.405504,3007.9,3007.8,0.001]
[1763566619868,3.7300826,3007.9,3007.8,0.001]
[1763566620044,4.0860826,3007.9,3007.8,0.001]
[1763566620369,3.4465786,3007.9,3007.8,0.001]
[1763566620534,0.1195,3008.2,3007.8,0.001]
[1763566620535,6.64855588,3008.2,3007.8,0.001]
[1763566620737,1.38149264,3008.1,3004.6,0.7271]
[1763566620963,1.38149264,3008.1,3005.3,0.4821]
[1763566620964,3.492,3007.9,3005.3,0.4821]
[1763566621184,3.492,3007.9,3004.8,0.4821]
[1763566621185,0.405504,3006.7,3004.8,0.4821]
[1763566621393,3.492,3006.4,3004.9,0.4821]
[1763566621539,0.122,3006.6,3005.2,0.4821]
[1763566621890,0.405504,3007.9,3006.5,0.195]
[1763566622190,0.405504,3007.7,3005.2,0.4821]
[1763566622397,0.405504,3007.7,3005.3,0.5821]
[1763566622580,0.405504,3007.7,3005.3,0.4821]
[1763566622762,0.405504,3007.5,3005.3,0.4821]
[1763566623174,0.405504,3007.3,3004.8,0.4821]
[1763566623385,0.405504,3007.1,3004.8,0.4821]
[1763566623879,0.405504,3007.1,3005.2,0.4821]
[1763566623880,9.97705275,3006.9,3005.2,0.4821]
[1763566624185,1.92779792,3006.8,3004.6,0.6771]
[1763566624393,0.122,3006.7,3004.6,0.195]
[1763566624550,0.405504,3006.3,3004.5,0.00684988]
[1763566624754,0.518004,3005.2,3004.5,0.00684988]
[1763566624955,1.13848795,3005.2,3004.5,0.00684988]
[1763566625156,0.405504,3005.1,3004.5,0.00684988]
[1763566625499,0.405504,3005.1,3002.6,0.01624]
[1763566625500,1.31249664,3004.9,3002.6,0.01624]
[1763566625651,1.31249664,3004.9,3002.7,0.4821]
[1763566625987,0.405504,3004.5,3002.6,0.01624]
[1763566626186,0.122,3004.4,3002.7,0.4821]
[1763566626387,0.405504,3004.3,3002.7,0.4321]
[1763566626902,0.405504,3004.1,3002.6,0.01624]
[1763566627194,0.405504,3003.9,3002.6,0.01624]
[1763566627353,0.574004,3002.7,3002.6,0.01624]
[1763566627556,0.527504,3002.7,3002.6,0.01624]
[1763566627760,4.13884003,3002.7,3002.6,0.01624]
[1763566627961,6.26841354,3002.7,3002.6,0.01624]
[1763566628355,4.64283267,3002.7,3002.6,0.01624]
[1763566628561,0.527504,3002.7,3002.6,0.01624]
[1763566628796,3.85784003,3002.7,3002.6,0.01624]
[1763566629361,4.13884003,3002.7,3002.6,0.01624]
[1763566629598,0.1685,3003.1,3002.6,0.01624]
[1763566629808,0.122,3003.0,3002.6,0.01624]
[1763566630107,3.45202858,3003.0,3002.6,0.01624]
[1763566630306,0.122,3003.0,3002.6,0.01624]
[1763566630508,0.122,3003.0,3002.6,0.51164]
[1763566630709,0.122,3003.0,3002.6,0.01624]
[1763566630909,0.122,3003.0,3002.7,0.4954]
[1763566631227,0.122,3003.3,3002.7,0.4954]
[1763566631703,3.44011424,3005.2,3002.7,0.4954]
[1763566631704,0.1125,3005.5,3003.2,0.1962]
[1763566631927,9.97838016,3006.5,3003.3,0.4954]
[1763566632082,1.11983802,3006.4,3003.4,0.1]
[1763566632404,8.44229719,3006.4,3003.3,0.4954]
[1763566632570,0.281,3006.3,3003.3,0.4954]
[1763566633003,0.99783802,3006.4,3003.4,0.90699264]
[1763566633204,7.04145917,3007.4,3003.3,7.53685917]
[1763566633205,6.65092614,3007.1,3004.0,0.90699264]
[1763566633406,0.1685,3008.2,3005.1,7.04145917]
[1763566633582,0.122,3008.1,3005.5,0.1]
[1763566633788,6.64893616,3008.0,3005.5,0.1]
[1763566633975,0.122,3008.1,3005.8,1.00699264]
[1763566634174,0.122,3008.1,3005.8,0.90699264]
[1763566634507,3.32255314,3009.8,3008.0,0.1962]
[1763566634729,1.47906617,3009.7,3008.0,0.6916]
[1763566634928,0.122,3009.7,3008.1,0.4954]
[1763566635290,0.403,3009.7,3008.1,0.4954]
[1763566635492,0.122,3009.6,3008.1,0.4954]
[1763566635706,0.122,3009.5,3008.1,0.4954]
[1763566635905,3.44481109,3009.5,3008.1,7.1426]
[1763566636105,0.122,3009.5,3008.1,7.1426]
[1763566636333,0.002,3010.5,3009.4,0.1962]
[1763566636545,0.002,3010.5,3009.5,0.4954]
[1763566636756,0.002,3010.5,3009.5,8.04799264]
[1763566636899,3.31939188,3012.6,3009.5,15.08945181]
[1763566637098,0.281,3012.7,3009.5,15.08945181]
[1763566637099,0.36003919,3012.5,3009.7,0.405504]
[1763566637413,0.122,3012.4,3009.7,6.6452]
[1763566637593,7.04145917,3012.3,3009.8,0.4954]
[1763566637926,7.04145917,3012.3,3009.7,6.6452]
[1763566637927,0.90699264,3011.6,3009.7,6.6452]
[1763566638128,0.91684518,3011.5,3009.7,6.6452]
[1763566638644,0.688504,3011.4,3009.7,6.6452]
[1763566638932,0.79484518,3011.5,3009.8,0.4954]
[1763566639131,0.122,3011.4,3009.8,7.1404]
[1763566639694,0.122,3011.4,3009.9,0.4954]
[1763566640040,3.44272376,3011.4,3009.9,7.1401]
[1763566640234,10.08417128,3011.4,3009.9,7.1401]
[1763566640528,0.405504,3011.3,3010.0,0.4954]
[1763566640729,1.04896753,3011.2,3010.0,0.4954]
[1763566640972,1.04896753,3011.2,3009.9,6.6447]
[1763566640973,0.405504,3011.1,3009.9,6.6447]
[1763566641231,1.04896753,3011.2,3010.0,0.4954]
[1763566641401,0.122,3011.0,3010.0,6.6445]
[1763566641597,0.405504,3010.9,3010.0,6.6445]
[1763566641793,0.122,3011.0,3010.0,6.6445]
[1763566642007,3.44322887,3011.0,3010.0,5.79888]
[1763566642207,6.64098816,3011.6,3010.0,5.79888]
[1763566642418,0.405504,3011.4,3010.0,5.79888]
[1763566642832,0.405504,3011.2,3010.0,5.79888]
[1763566643441,1.02899264,3011.5,3008.0,0.1962]
[1763566643442,0.405504,3010.0,3008.0,0.1962]
[1763566643735,0.405504,3009.8,3007.5,0.1962]
[1763566643956,0.122,3009.9,3007.5,0.1962]
[1763566643957,1.31249664,3009.6,3007.5,0.1962]
[1763566644242,0.405504,3009.4,3006.1,7.04145917]
[1763566644532,0.122,3009.3,3007.5,0.4954]
[1763566644755,0.405504,3009.2,3007.5,6.6564]
[1763566645063,0.122,3009.1,3007.6,0.6713]
[1763566645353,0.122,3009.1,3007.7,0.4767]
[1763566645555,7.04145917,3011.5,3007.7,7.54429264]
[1763566645757,0.4977,3011.3,3009.5,0.1946]
[1763566645948,13.28374068,3011.2,3009.5,0.1946]
[1763566646148,0.90699264,3011.1,3009.2,0.4767]
[1763566646334,9.96280551,3011.2,3009.6,0.4767]
[1763566646521,6.64187034,3011.2,3009.6,6.6334]
[1763566646858,0.71395703,3011.1,3009.6,6.6334]
[1763566647059,7.13655042,3012.6,3009.9,0.1]
[1763566647219,0.122,3012.5,3011.1,0.1946]
[1763566647421,0.122,3012.5,3011.2,0.4767]
[1763566647626,3.31895121,3013.0,3011.2,6.6301]
[1763566647850,3.31917153,3012.8,3011.3,0.4767]
[1763566648050,3.44109189,3012.9,3011.3,6.6299]
[1763566648258,6.76018378,3012.9,3011.3,6.6299]
[1763566648555,0.67601838,3012.8,3011.4,0.4767]
[1763566648756,0.67601838,3012.8,3011.4,6.6297]
[1763566649363,0.67601838,3012.8,3011.5,0.4767]
[1763566649722,0.57601838,3012.8,3011.5,6.1528]
[1763566649927,1.31249664,3012.5,3011.5,6.1528]
[1763566650760,1.06552409,3012.7,3011.5,6.1528]
[1763566650761,0.122,3012.7,3011.5,6.1528]
[1763566650946,1.02899264,3012.7,3011.5,6.1528]
[1763566651147,1.52669264,3012.7,3011.5,6.1528]
[1763566651348,2.21776231,3012.6,3011.5,6.1528]
[1763566651858,0.405504,3012.4,3011.5,6.1528]
[1763566652062,1.31249664,3012.4,3011.5,6.1528]
[1763566652281,0.405504,3012.2,3011.5,6.1528]
[1763566653260,0.122,3012.7,3011.6,0.4767]
[1763566653482,3.4412817,3012.7,3011.6,6.6293]
[1763566653761,0.34412817,3012.6,3011.6,6.1526]
[1763566653928,9.95850621,3012.5,3011.6,6.1526]
[1763566654125,0.405504,3012.4,3011.6,6.1526]
[1763566654362,3.31950207,3012.5,3011.6,6.1526]
[1763566654536,0.122,3012.7,3011.7,0.4767]
[1763566654743,0.122,3012.7,3011.7,6.6291]
[1763566655148,0.122,3012.7,3011.8,0.4767]
[1763566655337,0.002,3012.2,3011.8,6.6289]
[1763566655538,0.002,3012.2,3011.9,0.4767]
[1763566655733,0.002,3012.2,3011.9,6.6287]
[1763566655938,0.002,3012.2,3012.0,1.38369264]
[1763566656165,0.002,3012.2,3012.0,7.53549264]
[1763566656365,0.002,3012.2,3012.1,0.4767]
[1763566656669,0.002,3012.6,3012.1,6.6283]
[1763566656867,0.002,3012.6,3012.1,6.1516]
[1763566657636,0.405504,3012.4,3012.1,6.1516]
[1763566657859,0.405504,3012.2,3012.1,6.1516]
[1763566658168,14.13833472,3012.2,3010.7,0.4868]
[1763566658334,1.42593347,3012.1,3010.7,0.4868]
[1763566659274,0.4543,3012.0,3009.9,0.4878]
[1763566659436,4.45279264,3011.9,3009.9,0.001]
[1763566659862,0.4543,3011.8,3009.9,0.001]
[1763566660172,0.405504,3011.5,3009.9,0.001]
[1763566660372,0.405504,3011.3,3009.9,0.001]
[1763566660893,0.859804,3011.3,3009.9,0.001]
[1763566661261,0.405504,3011.1,3009.9,0.001]
[1763566661663,0.405504,3011.3,3010.0,0.4868]
[1763566661965,6.64187034,3011.2,3010.0,0.4868]
[1763566662397,3.32093517,3011.2,3010.0,0.4868]